fUST/lending_fUST_20250918
["ID","MTS","AMOUNT","RATE_DAILY","PERIOD"]
[385940701,1758139839982,-500.0,0.00024873,2]
[385940703,1758139839991,-500.0,0.00024873,2]
[385940705,1758139840001,-500.0,0.00024873,2]
[385940707,1758139840011,-500.0,0.00024873,2]
[385940709,1758139840020,-168.0,0.00024892,2]
[385940710,1758139840029,-160.0,0.00024892,2]
[385940711,1758139840038,-352.66,0.00024898,3]
[385940712,1758139840048,-614.29,0.000249,7]
[385940713,1758139840057,-143452.11103985,0.000249,2]
[385940714,1758139840069,-516299.70990215,0.000249,2]
[385940715,1758139840078,-461.3,0.00024904,3]
[385940716,1758139840089,-389.6128514,0.00024904,2]
[385940717,1758139840100,-389.6128514,0.00024904,2]
[385940718,1758139840109,-389.6128514,0.00024904,2]
[385940719,1758139840118,-389.6128514,0.00024904,2]
[385940720,1758139840128,-480.0,0.00024906,3]
[385940721,1758139840137,-654.32,0.00024906,3]
[385940722,1758139840147,-480.0,0.00024906,3]
[385940723,1758139840156,-480.0,0.00024906,3]
[385940724,1758139840166,-480.0,0.00024908,3]
[385940725,1758139840175,-480.0,0.00024908,3]
[385940726,1758139840184,-480.0,0.00024908,3]
[385940727,1758139840193,-183.18,0.00024908,3]
[385940728,1758139840203,-1017.83,0.00024908,3]
[385940729,1758139840216,-480.0,0.00024908,3]
[385940730,1758139840227,-480.0,0.00024908,3]
[385940731,1758139840238,-480.0,0.00024908,3]
[385940732,1758139840248,-480.0,0.00024908,3]
[385940733,1758139840257,-480.0,0.00024908,3]
[385940734,1758139840269,-480.0,0.00024908,3]
[385940735,1758139840279,-616.12,0.00024908,3]
[385940736,1758139840290,-221.03,0.00024908,3]
[385940737,1758139840301,-349.0230414,0.00024908,3]
[385940738,1758139840310,-480.0,0.00024908,3]
[385940739,1758139840320,-480.0,0.00024908,3]
[385940740,1758139840329,-480.0,0.00024908,3]
[385940741,1758139840338,-580.55,0.00024908,3]
[385940742,1758139840348,-486.14,0.00024908,3]
[385940743,1758139840357,-480.0,0.00024909,3]
[385940744,1758139840366,-1633.08,0.00024911,3]
[385940745,1758139840375,-480.0,0.00024911,3]
[385940746,1758139840385,-818.63,0.00024911,3]
[385940747,1758139840394,-490.67,0.00024912,3]
[385940748,1758139840404,-480.0,0.00024915,3]
[385940749,1758139840413,-922.6,0.00024965,3]
[385940750,1758139840422,-1837.0,0.0002497,2]
[385940751,1758139840431,-82303.74313714,0.0002499,2]
[385940752,1758139840441,-1845.2,0.00025083,3]
[385940753,1758139840450,-168.0,0.00025089,2]
[385940754,1758139840460,-150.0,0.00025107,2]
[385940755,1758139840469,-480.0,0.0002518,3]
[385940756,1758139840478,-654.32,0.0002518,3]
[385940757,1758139840487,-416.82,0.0002518,3]
[385940758,1758139840497,-480.0,0.0002518,3]
[385940759,1758139840506,-480.0,0.00025182,3]
[385940760,1758139840516,-480.0,0.00025182,3]
[385940761,1758139840525,-480.0,0.00025182,3]
[385940762,1758139840535,-1017.83,0.00025182,3]
[385940763,1758139840547,-480.0,0.00025182,3]
[385940764,1758139840556,-166.74,0.00025182,3]
[385940765,1758139840575,-480.0,0.00025182,3]
[385940766,1758139840584,-480.0,0.00025182,3]
[385940767,1758139840593,-480.0,0.00025182,3]
[385940768,1758139840602,-480.0,0.00025182,3]
[385940769,1758139840611,-616.12,0.00025182,3]
[385940770,1758139840621,-480.0,0.00025182,3]
[385940771,1758139840630,-480.0,0.00025182,3]
[385940772,1758139840639,-480.0,0.00025182,3]
[385940773,1758139840648,-580.55,0.00025182,3]
[385940774,1758139840657,-486.14,0.00025182,3]
[385940775,1758139840667,-168.0,0.00025183,2]
[385940776,1758139840676,-480.0,0.00025183,3]
[385940777,1758139840685,-1633.08,0.00025185,3]
[385940778,1758139840696,-480.0,0.00025185,3]
[385940779,1758139840707,-818.63,0.00025185,3]
[385940780,1758139840717,-490.67,0.00025186,3]
[385940781,1758139840726,-480.0,0.00025189,3]
[385940782,1758139840735,-420.0,0.00025244,2]
[385940783,1758139840746,-420.0,0.00025244,2]
[385940784,1758139840755,-168.0,0.00025293,2]
[385940785,1758139840764,-1000.0,0.00025321,2]
[385940786,1758139840774,-434.0,0.00025361,2]
[385940787,1758139840783,-181.08010149,0.00025418,2]
[385940788,1758139840792,-1000.0,0.00025421,2]
[385940789,1758139840803,-1000.0,0.00025421,2]
[385940790,1758139840813,-1000.0,0.00025421,2]
[385940791,1758139840822,-500.0,0.00025421,2]
[385940792,1758139840831,-1000.0,0.00025421,2]
[385940793,1758139840841,-260.0,0.0002544,2]
[385940794,1758139840850,-480.0,0.00025454,3]
[385940795,1758139840859,-654.32,0.00025454,3]
[385940796,1758139840868,-480.0,0.00025454,3]
[385940797,1758139840877,-480.0,0.00025456,3]
[385940798,1758139840887,-480.0,0.00025456,3]
[385940799,1758139840895,-480.0,0.00025456,3]
[385940800,1758139840905,-1017.83,0.00025456,3]
[385940801,1758139840914,-480.0,0.00025456,3]
[385940802,1758139840923,-480.0,0.00025456,3]
[385940803,1758139840933,-480.0,0.00025456,3]
[385940804,1758139840942,-480.0,0.00025456,3]
[385940805,1758139840952,-480.0,0.00025456,3]
[385940806,1758139840961,-616.12,0.00025456,3]
[385940807,1758139840970,-480.0,0.00025456,3]
[385940808,1758139840980,-480.0,0.00025456,3]
[385940809,1758139840989,-480.0,0.00025456,3]
[385940810,1758139840998,-580.55,0.00025456,3]
[385940811,1758139841007,-486.14,0.00025456,3]
[385940812,1758139841017,-480.0,0.00025457,3]
[385940813,1758139841026,-1633.08,0.00025459,3]
[385940814,1758139841035,-480.0,0.00025459,3]
[385940815,1758139841044,-818.63,0.00025459,3]
[385940816,1758139841055,-490.67,0.0002546,3]
[385940817,1758139841064,-480.0,0.00025463,3]
[385940818,1758139841073,-174.59529715,0.00025634,2]
[385940819,1758139841082,-168.0,0.00025634,2]
[385940820,1758139841091,-168.0,0.00025683,2]
[385940821,1758139841102,-480.0,0.00025728,3]
[385940822,1758139841111,-654.32,0.00025728,3]
[385940823,1758139841120,-480.0,0.00025728,3]
[385940824,1758139841130,-480.0,0.0002573,3]
[385940825,1758139841139,-480.0,0.0002573,3]
[385940826,1758139841149,-480.0,0.0002573,3]
[385940827,1758139841158,-1017.83,0.0002573,3]
[385940828,1758139841168,-480.0,0.0002573,3]
[385940829,1758139841177,-480.0,0.0002573,3]
[385940830,1758139841187,-480.0,0.0002573,3]
[385940831,1758139841196,-480.0,0.0002573,3]
[385940832,1758139841205,-616.12,0.0002573,3]
[385940833,1758139841214,-188.26,0.0002573,3]
[385940834,1758139841223,-578.56,0.0002573,3]
[385940835,1758139841233,-580.55,0.0002573,3]
[385940836,1758139841242,-486.14,0.0002573,3]
[385940837,1758139841252,-480.0,0.00025731,3]
[385940838,1758139841261,-1633.08,0.00025733,3]
[385940839,1758139841271,-480.0,0.00025733,3]
[385940840,1758139841281,-818.63,0.00025733,3]
[385940841,1758139841290,-490.67,0.00025734,3]
[385940842,1758139841301,-480.0,0.00025737,3]
[385940843,1758139841310,-347.0,0.00025739,2]
[385940844,1758139841319,-2000.0,0.000258,2]
[385940845,1758139841329,-168.0,0.00025823,2]
[385940846,1758139841338,-347.0,0.0002583,2]
[385940847,1758139841347,-1500.0,0.00025868,2]
[385940848,1758139841356,-372.54150745,0.00025968,2]
[385940849,1758139841365,-1204.1867647,0.00025968,2]
[385940850,1758139841375,-1000.0,0.00025968,2]
[385940851,1758139841383,-1500.0,0.00025968,2]
[385940852,1758139841393,-360.0,0.00025988,2]
[385940853,1758139841402,-480.0,0.00026002,3]
[385940854,1758139841411,-654.32,0.00026002,3]
[385940855,1758139841420,-480.0,0.00026002,3]
[385940856,1758139841429,-480.0,0.00026004,3]
[385940857,1758139841439,-480.0,0.00026004,3]
[385940858,1758139841448,-480.0,0.00026004,3]
[385940859,1758139841457,-1017.83,0.00026004,3]
[385940860,1758139841467,-480.0,0.00026004,3]
[385940861,1758139841476,-480.0,0.00026004,3]
[385940862,1758139841485,-480.0,0.00026004,3]
[385940863,1758139841495,-480.0,0.00026004,3]
[385940864,1758139841504,-616.12,0.00026004,3]
[385940865,1758139841513,-580.55,0.00026004,3]
[385940866,1758139841523,-486.14,0.00026004,3]
[385940867,1758139841532,-480.0,0.00026005,3]
[385940868,1758139841541,-1633.08,0.00026007,3]
[385940869,1758139841552,-480.0,0.00026007,3]
[385940870,1758139841561,-818.63,0.00026007,3]
[385940871,1758139841571,-490.67,0.00026008,3]
[385940872,1758139841580,-480.0,0.00026011,3]
[385940873,1758139841589,-3108.38,0.00026027,4]
[385940874,1758139841599,-160.0,0.00026154,4]
[385940875,1758139841608,-168.0,0.00026165,2]
[385940876,1758139841618,-150.0,0.00026225,2]
[385940877,1758139841627,-480.0,0.00026276,3]
[385940878,1758139841636,-654.32,0.00026276,3]
[385940879,1758139841645,-480.0,0.00026276,3]
[385940880,1758139841655,-480.0,0.00026278,3]
[385940881,1758139841665,-480.0,0.00026278,3]
[385940882,1758139841674,-480.0,0.00026278,3]
[385940883,1758139841683,-1017.83,0.00026278,3]
[385940884,1758139841694,-480.0,0.00026278,3]
[385940885,1758139841707,-480.0,0.00026278,3]
[385940886,1758139841716,-480.0,0.00026278,3]
[385940887,1758139841748,-480.0,0.00026278,3]
[385940888,1758139841758,-616.12,0.00026278,3]
[385940889,1758139841767,-580.55,0.00026278,3]
[385940890,1758139841777,-486.14,0.00026278,3]
[385940891,1758139841787,-600.0,0.00026279,3]
[385940892,1758139841796,-1633.08,0.00026281,3]
[385940893,1758139841806,-480.0,0.00026281,3]
[385940894,1758139841815,-490.67,0.00026282,3]
[385940895,1758139841825,-480.0,0.00026285,3]
[385940896,1758139841834,-720.0,0.00026411,20]
[385940897,1758139841844,-2000.0,0.00026416,2]
[385940898,1758139841854,-156.66,0.00026421,2]
[385940899,1758139841863,-2000.0,0.00026516,2]
[385940900,1758139841872,-460.0,0.00026536,2]
[385940901,1758139841881,-480.0,0.0002655,3]
[385940902,1758139841891,-654.32,0.0002655,3]
[385940903,1758139841900,-480.0,0.0002655,3]
[385940904,1758139841909,-480.0,0.00026552,3]
[385940905,1758139841919,-480.0,0.00026552,3]
[385940906,1758139841928,-480.0,0.00026552,3]
[385940907,1758139841937,-1017.83,0.00026552,3]
[385940908,1758139841947,-480.0,0.00026552,3]
[385940909,1758139841956,-480.0,0.00026552,3]
[385940910,1758139841965,-480.0,0.00026552,3]
[385940911,1758139841975,-480.0,0.00026552,3]
[385940912,1758139841984,-616.12,0.00026552,3]
[385940913,1758139841994,-580.55,0.00026552,3]
[385940914,1758139842003,-486.14,0.00026552,3]
[385940915,1758139842013,-1633.08,0.00026555,3]
[385940916,1758139842022,-268.61735977,0.00026555,3]
[385940917,1758139842032,-490.67,0.00026556,3]
[385940918,1758139842041,-480.0,0.00026559,3]
[385940919,1758139842053,-2074.31,0.00026626,2]
[385940920,1758139842063,-1075.199999,0.000268,2]
[385940921,1758139842072,-228.79513506,0.00026824,3]
[385940922,1758139842081,-654.32,0.00026824,3]
[385940923,1758139842091,-480.0,0.00026824,3]
[385940924,1758139842100,-480.0,0.00026826,3]
[385940925,1758139842109,-480.0,0.00026826,3]
[385940926,1758139842118,-480.0,0.00026826,3]
[385940927,1758139842128,-1017.83,0.00026826,3]
[385940928,1758139842137,-480.0,0.00026826,3]
[385940929,1758139842146,-480.0,0.00026826,3]
[385940930,1758139842157,-480.0,0.00026826,3]
[385940931,1758139842167,-480.0,0.00026826,3]
[385940932,1758139842176,-616.12,0.00026826,3]
[385940933,1758139842185,-580.55,0.00026826,3]
[385940934,1758139842195,-486.14,0.00026826,3]
[385940935,1758139842205,-1633.08,0.00026829,3]
[385940936,1758139842214,-490.67,0.0002683,3]
[385940937,1758139842224,-480.0,0.00026833,3]
[385940938,1758139842233,-1210.84331519,0.00026964,2]
[385940939,1758139842242,-2500.0,0.00027064,2]
[385940940,1758139842252,-560.0,0.00027084,2]
[385940941,1758139842261,-654.32,0.00027098,3]
[385940942,1758139842270,-480.0,0.00027098,3]
[385940943,1758139842280,-614.29,0.000271,7]
[385940944,1758139842290,-480.0,0.000271,3]
[385940945,1758139842300,-480.0,0.000271,3]
[385940946,1758139842309,-480.0,0.000271,3]
[385940947,1758139842319,-1017.83,0.000271,3]
[385940948,1758139842328,-497.76011758,0.000271,3]
[385940949,1758139842337,-480.0,0.000271,3]
[385940950,1758139842346,-480.0,0.000271,3]
[385940951,1758139842355,-480.0,0.000271,3]
[385940952,1758139842365,-616.12,0.000271,3]
[385940953,1758139842374,-580.55,0.000271,3]
[385940955,1758139842384,-486.14,0.000271,3]
[385940956,1758139842393,-1633.08,0.00027103,3]
[385940957,1758139842403,-490.67,0.00027104,3]
[385940958,1758139842412,-480.0,0.00027107,3]
[385940959,1758139842422,-1000.0,0.0002713,5]
[385940960,1758139842432,-1627.72799128,0.00027218,2]
[385940961,1758139842443,-654.32,0.00027372,3]
[385940962,1758139842453,-480.0,0.00027372,3]
[385940963,1758139842464,-480.0,0.00027374,3]
[385940964,1758139842473,-480.0,0.00027374,3]
[385940965,1758139842483,-480.0,0.00027374,3]
[385940967,1758139842492,-1017.83,0.00027374,3]
[385940969,1758139842501,-186.11795616,0.00027374,3]
[385940971,1758139842511,-569.2478231,0.00027374,3]
[385940972,1758139842521,-480.0,0.00027374,3]
[385940973,1758139842530,-616.12,0.00027374,3]
[385940974,1758139842539,-580.55,0.00027374,3]
[385940975,1758139842549,-486.14,0.00027374,3]
[385940976,1758139842559,-300.0,0.00027375,5]
[385940977,1758139842568,-1633.08,0.00027377,3]
[385940978,1758139842579,-490.67,0.00027378,3]
[385940979,1758139842589,-480.0,0.00027381,3]
[385940980,1758139842598,-154.24208825,0.00027397,2]
[385940981,1758139842607,-587.0,0.00027397,2]
[385940982,1758139842617,-587.0,0.00027397,2]
[385940983,1758139842626,-1500.0,0.00027397,2]
[385940984,1758139842635,-160.77173361,0.00027397,2]
[385940985,1758139842645,-3297.29512417,0.000275,2]
[385940986,1758139842655,-600.0,0.0002756,2]
[385940987,1758139842664,-156.74,0.0002757,15]
[385940988,1758139842674,-152.51,0.0002757,15]
[385940989,1758139842683,-3000.0,0.00027612,5]
[385940990,1758139842695,-660.0,0.00027632,2]
[385940991,1758139842705,-654.32,0.00027646,3]
[385940992,1758139842715,-480.0,0.00027646,3]
[385940993,1758139842724,-480.0,0.00027648,3]
[385940994,1758139842735,-480.0,0.00027648,3]
[385940995,1758139842744,-480.0,0.00027648,3]
[385940996,1758139842754,-1017.83,0.00027648,3]
[385940997,1758139842764,-480.0,0.00027648,3]
[385940998,1758139842774,-616.12,0.00027648,3]
[385940999,1758139842784,-580.55,0.00027648,3]
[385941000,1758139842793,-1633.08,0.00027651,3]
[385941001,1758139842803,-2512.46,0.00027652,3]
[385941002,1758139842812,-490.67,0.00027652,3]
[385941003,1758139842821,-499.42,0.00027655,3]
[385941004,1758139842831,-152.52,0.0002767,15]
[385941005,1758139842840,-151.0,0.00027766,6]
[385941006,1758139842850,-1402.00249473,0.00027801,2]
[385941007,1758139842860,-898.93599219,0.00027847,2]
[385941008,1758139842871,-654.32,0.0002792,3]
[385941009,1758139842880,-480.0,0.0002792,3]
[385941010,1758139842891,-480.0,0.00027922,3]
[385941011,1758139842900,-569.22727642,0.00027922,3]
[385941012,1758139842910,-480.0,0.00027922,3]
[385941013,1758139842920,-1017.83,0.00027922,3]
[385941014,1758139842930,-416.44886265,0.00027922,3]
[385941015,1758139842939,-616.12,0.00027922,3]
[385941016,1758139842949,-580.55,0.00027922,3]
[385941017,1758139842958,-1633.08,0.00027925,3]
[385941018,1758139842967,-490.67,0.00027926,3]
[385941019,1758139842977,-1093.947696,0.0002796,5]
[385941020,1758139842986,-1000.0,0.0002798,5]
[385941021,1758139842995,-1154.309746,0.0002798,5]
[385941022,1758139843004,-160.0,0.00028,5]
[385941023,1758139843014,-253.23475905,0.00028,5]
[385941024,1758139843023,-500.0,0.00028,10]
[385941025,1758139843033,-1000.0,0.00028,5]
[385941026,1758139843043,-1000.0,0.00028,5]
[385941027,1758139843052,-150.0,0.00028,10]
[385941028,1758139843062,-1046.0,0.00028,2]
[385941029,1758139843072,-250.0,0.00028019,2]
[385941030,1758139843082,-150.0,0.00028107,2]
[385941031,1758139843092,-1046.0,0.0002814,2]
[385941032,1758139843102,-3500.0,0.0002816,5]
[385941033,1758139843111,-760.0,0.00028179,2]
[385941034,1758139843121,-654.32,0.00028194,3]
[385941035,1758139843131,-480.0,0.00028194,3]
[385941036,1758139843141,-480.0,0.00028196,3]
[385941037,1758139843151,-480.0,0.00028196,3]
[385941038,1758139843160,-1017.83,0.00028196,3]
[385941039,1758139843170,-616.12,0.00028196,3]
[385941040,1758139843179,-580.55,0.00028196,3]
[385941041,1758139843189,-1633.08,0.00028199,3]
[385941043,1758139843198,-490.67,0.000282,3]
[385941045,1758139843208,-800.0,0.00028208,2]
[385941047,1758139843217,-151.0,0.00028213,6]
[385941049,1758139843227,-201.0,0.0002823,20]
[385941050,1758139843236,-408.09098953,0.00028234,2]
[385941052,1758139843245,-1632.36395811,0.00028234,2]
[385941053,1758139843255,-3669.14608685,0.00028234,2]
[385941054,1758139843264,-800.0,0.00028291,2]
[385941055,1758139843274,-500.0,0.00028327,2]
[385941056,1758139843283,-904.1009006,0.00028335,2]
[385941057,1758139843292,-3183.1599362,0.00028335,2]
[385941058,1758139843303,-911.991165,0.00028335,2]
[385941059,1758139843314,-500.0,0.00028342,2]
[385941060,1758139843324,-800.0,0.00028365,2]
[385941061,1758139843334,-500.0,0.000284,2]
[385941062,1758139843343,-700.0,0.00028438,2]
[385941063,1758139843353,-800.0,0.00028466,2]
[385941064,1758139843362,-654.32,0.00028468,3]
[385941065,1758139843372,-480.0,0.00028468,3]
[385941066,1758139843381,-500.0,0.00028469,2]
[385941067,1758139843390,-480.0,0.0002847,3]
[385941068,1758139843400,-480.0,0.0002847,3]
[385941069,1758139843410,-1017.83,0.0002847,3]
[385941070,1758139843420,-616.12,0.0002847,3]
[385941071,1758139843429,-580.55,0.0002847,3]
[385941072,1758139843439,-1633.08,0.00028473,3]
[385941073,1758139843449,-490.67,0.00028474,3]
[385941074,1758139843458,-500.0,0.00028494,2]
[385941075,1758139843468,-276.78883637,0.00028494,2]
[385941076,1758139843477,-500.0,0.00028494,2]
[385941077,1758139843487,-700.0,0.000285,2]
[385941078,1758139843496,-800.0,0.00028502,2]
[385941079,1758139843505,-500.0,0.00028523,2]
[385941080,1758139843515,-500.0,0.00028532,2]
[385941081,1758139843524,-800.0,0.00028561,2]
[385941082,1758139843533,-800.0,0.00028569,2]
[385941083,1758139843543,-700.0,0.00028624,2]
[385941084,1758139843553,-500.0,0.00028648,2]
[385941085,1758139843562,-700.0,0.00028653,2]
[385941086,1758139843572,-151.0,0.00028661,6]
[385941087,1758139843581,-500.0,0.00028689,2]
[385941088,1758139843591,-500.0,0.00028704,2]
[385941089,1758139843600,-500.0,0.00028708,5]
[385941090,1758139843610,-500.0,0.00028708,5]
[385941091,1758139843619,-4000.0,0.00028708,5]
[385941092,1758139843629,-700.0,0.0002871,2]
[385941093,1758139843639,-860.0,0.00028727,2]
[385941094,1758139843648,-654.32,0.00028742,3]
[385941095,1758139843658,-480.0,0.00028742,3]
[385941096,1758139843667,-480.0,0.00028744,3]
[385941097,1758139843678,-480.0,0.00028744,3]
[385941098,1758139843687,-1017.83,0.00028744,3]
[385941099,1758139843700,-616.12,0.00028744,3]
[385941100,1758139843711,-580.55,0.00028744,3]
[385941101,1758139843720,-800.0,0.00028745,2]
[385941102,1758139843730,-1633.08,0.00028747,3]
[385941103,1758139843739,-490.67,0.00028748,3]
[385941104,1758139843750,-500.0,0.00028762,2]
[385941105,1758139843760,-153.81,0.00028764,15]
[385941106,1758139843770,-3108.38,0.00028767,6]
[385941107,1758139843780,-500.0,0.00028768,2]
[385941108,1758139843789,-500.0,0.00028768,2]
[385941109,1758139843799,-700.0,0.00028771,2]
[385941110,1758139843809,-156.74,0.00028784,15]
[385941111,1758139843818,-151.22,0.00028784,15]
[385941112,1758139843828,-998.16465713,0.00028792,60]
[385941113,1758139843838,-1122.47,0.000288,7]
[385941114,1758139843848,-151.0,0.000288,17]
[385941115,1758139843857,-800.0,0.00028819,2]
[385941116,1758139843866,-500.0,0.00028854,2]
[385941117,1758139843876,-800.0,0.00028859,2]
[385941118,1758139843886,-153.81,0.00028864,15]
[385941119,1758139843895,-156.74,0.00028884,15]
[385941120,1758139843905,-151.22,0.00028884,15]
[385941121,1758139843915,-500.0,0.00028885,2]
[385941122,1758139843925,-500.0,0.00028888,2]
[385941123,1758139843935,-614.29,0.000289,7]
[385941124,1758139843944,-500.0,0.00028939,2]
[385941125,1758139843955,-153.81,0.00028964,15]
[385941126,1758139843965,-310.8572562,0.00028965,30]
[385941127,1758139843974,-606.1753143,0.00028965,30]
[385941128,1758139843984,-152.4686359,0.00028965,30]
[385941129,1758139843994,-591.9550402,0.00028965,30]
[385941130,1758139844005,-287.1871312,0.00028965,30]
[385941131,1758139844015,-161.9493691,0.00028965,30]
[385941132,1758139844024,-585.0802498,0.00028965,30]
[385941133,1758139844033,-161.9493691,0.00028965,30]
[385941134,1758139844043,-585.0802498,0.00028965,30]
[385941135,1758139844053,-585.0802498,0.00028965,30]
[385941136,1758139844063,-161.9493691,0.00028965,30]
[385941137,1758139844073,-585.0802498,0.00028965,30]
[385941138,1758139844082,-158.76364036,0.00028965,2]
[385941139,1758139844092,-700.0,0.0002897,2]
[385941140,1758139844102,-700.0,0.00028982,2]
[385941141,1758139844114,-156.74,0.00028984,15]
[385941142,1758139844124,-151.22,0.00028984,15]
[385941143,1758139844134,-877.62746439,0.00029,2]
[385941144,1758139844144,-209.0,0.00029,2]
[385941145,1758139844154,-160.0,0.00029,10]
[385941146,1758139844164,-654.32,0.00029016,3]
[385941147,1758139844173,-351.21,0.00029016,3]
[385941148,1758139844183,-480.0,0.00029018,3]
[385941149,1758139844192,-290.99664436,0.00029018,3]
[385941150,1758139844203,-1017.83,0.00029018,3]
[385941151,1758139844213,-580.55,0.00029018,3]
[385941152,1758139844304,-1633.08,0.00029021,3]
[385941153,1758139844315,-490.67,0.00029022,3]
[385941154,1758139844325,-800.0,0.00029026,2]
[385941155,1758139844334,-170.28217381,0.00029041,120]
[385941156,1758139844343,-500.0,0.00029042,2]
[385941157,1758139844352,-500.0,0.00029042,2]
[385941158,1758139844361,-864.0,0.00029052,20]
[385941159,1758139844371,-153.81,0.00029064,15]
[385941160,1758139844380,-800.0,0.00029065,2]
[385941161,1758139844389,-156.74,0.00029084,15]
[385941162,1758139844398,-151.22,0.00029084,15]
[385941163,1758139844407,-700.0,0.00029088,2]
[385941164,1758139844416,-800.0,0.00029105,2]
[385941165,1758139844425,-500.0,0.00029119,2]
[385941166,1758139844434,-153.81,0.00029164,15]
[385941167,1758139844444,-156.74,0.00029184,15]
[385941168,1758139844453,-151.22,0.00029184,15]
[385941169,1758139844462,-800.0,0.00029185,2]
[385941170,1758139844472,-500.0,0.00029197,2]
[385941171,1758139844481,-3500.0,0.000292,5]
[385941172,1758139844490,-800.0,0.00029202,2]
[385941173,1758139844499,-800.0,0.00029214,2]
[385941174,1758139844508,-500.0,0.00029223,2]
[385941175,1758139844517,-500.0,0.00029228,2]
[385941176,1758139844527,-700.0,0.00029228,2]
[385941177,1758139844536,-500.0,0.00029228,2]
[385941178,1758139844545,-500.0,0.00029246,2]
[385941179,1758139844555,-700.0,0.00029247,2]
[385941180,1758139844564,-2009.15082259,0.00029256,5]
[385941181,1758139844574,-153.81,0.00029264,15]
[385941182,1758139844583,-800.0,0.00029264,2]
[385941183,1758139844593,-500.0,0.00029273,2]
[385941184,1758139844602,-960.0,0.00029275,2]
[385941185,1758139844611,-156.74,0.00029284,15]
[385941186,1758139844620,-151.22,0.00029284,15]
[385941187,1758139844629,-500.0,0.0002929,5]
[385941188,1758139844638,-500.0,0.0002929,20]
[385941189,1758139844647,-500.0,0.0002929,5]
[385941190,1758139844657,-654.32,0.0002929,3]
[385941191,1758139844666,-589.50755106,0.00029292,3]
[385941192,1758139844675,-1017.83,0.00029292,3]
[385941193,1758139844685,-580.55,0.00029292,3]
[385941194,1758139844697,-1633.08,0.00029295,3]
[385941195,1758139844710,-490.67,0.00029296,3]
[385941196,1758139844719,-500.0,0.00029316,2]
[385941197,1758139844731,-500.0,0.00029316,2]
[385941198,1758139844742,-800.0,0.00029326,2]
[385941199,1758139844751,-500.0,0.00029335,2]
[385941200,1758139844760,-153.81,0.00029364,15]
[385941201,1758139844771,-500.0,0.00029368,2]
[385941202,1758139844780,-700.0,0.00029373,2]
[385941203,1758139844789,-499.3,0.00029375,2]
[385941204,1758139844799,-500.0,0.00029377,2]
[385941205,1758139844809,-500.0,0.0002938,2]
[385941206,1758139844818,-156.74,0.00029384,15]
[385941207,1758139844827,-151.22,0.00029384,15]
[385941208,1758139844837,-151.0,0.000294,19]
[385941209,1758139844846,-500.0,0.00029417,2]
[385941210,1758139844855,-700.0,0.00029432,2]
[385941211,1758139844864,-800.0,0.00029446,2]
[385941212,1758139844874,-700.0,0.00029448,2]
[385941213,1758139844883,-995.0,0.00029459,2]